Cogmind - Beta 13 @@@ ROGUE MODE // 2024.04.01 @ 13:29:03 Player: gabr Result: Destroyed by as-34626 with Assembled Maul Performance ------------- Evolutions (1) 500 Regions Visited (4) 800 Robots Destroyed (50) 250 Value Destroyed (926) 926 Prototype IDs (3) 60 Alien Tech Used (0) 0 Bonus (19) 19 TOTAL SCORE: 2555 Bonus ------- High Alert Combat Kills 19 Cogmind --------- Core Integrity 0/400 Matter 295/300 Energy 77/100 System Corruption 7% Temperature Warning (332) Movement Core (150) Ox2 Location -9/Mines Parts ------- > --- POWER (1) -------- (None) > --- PROPULSION (4) --- (None) > --- UTILITY (2) ------ Small Storage Unit > --- WEAPON (2) ------- Advanced Beam Cannon > --- INVENTORY (8) ---- Ion Engine Improved Ion Engine Improved Treads Improved Treads Power Shielding Propulsion Shielding Peak State ------------ > --- POWER ------------ Improved Ion Engine > --- PROPULSION ------- Improved Treads Improved Treads Improved Treads Improved Treads > --- UTILITY ---------- Small Storage Unit Small Matter Pod > --- WEAPON ----------- Advanced Beam Cannon Advanced Beam Cannon > --- INVENTORY -------- Ion Engine Improved Ion Engine Improved Treads Improved Treads Power Shielding Propulsion Shielding Beam Rifle Grenade Launcher [Rating: 19] Favorites ----------- Power Improved Ion Engine Engine Improved Ion Engine Propulsion Improved Treads Treads Improved Treads Leg Aluminum Leg Utility Small Storage Unit Device Shield Generator Storage Small Storage Unit Protection Light Armor Plating Weapon Light EM Pulse Cannon Energy Gun Beam Rifle Energy Cannon Light EM Pulse Cannon Ballistic Gun Assault Rifle Launcher Grenade Launcher Special Weapon Mining Laser Build | -11 -10 -10 -9 -9 ------- Run | Yrd Mat Min Mat Min Slots Evolved 2 | . . . 2 . Power . | . . . . . Propulsion 2 | . . . 2 . Utility . | . . . . . Weapon . | . . . . . Parts Attached 58 | 8 4 13 31 2 Power 7 | 1 . 4 2 . Engine 7 | 1 . 4 2 . Core . | . . . . . Reactor . | . . . . . Propulsion 18 | 2 . 5 11 . Treads 10 | . . . 10 . Leg 8 | 2 . 5 1 . Wheel . | . . . . . Hover . | . . . . . Flight . | . . . . . Utility 14 | 2 1 3 8 . Device 4 | 1 1 2 . . Storage 3 | 1 . . 2 . Processor . | . . . . . Hackware . | . . . . . Protection 7 | . . 1 6 . Artifact . | . . . . . Weapon 19 | 3 3 1 10 2 Energy Gun 4 | . 1 . 3 . Energy Cannon 6 | . 2 . 3 1 Ballistic Gun 7 | 2 . 1 4 . Ballistic Cannon . | . . . . . Launcher 1 | . . . . 1 Special Weapon 1 | 1 . . . . Impact Weapon . | . . . . . Slashing Weapon . | . . . . . Piercing Weapon . | . . . . . Special Melee Weapon . | . . . . . Unidentified Prototypes 1 | . . . 1 . Corrupted Parts 2 | . . 2 . . System Corruption 7 | . . 7 . . Parts Lost 12 | . 1 3 . 8 Power 2 | . . 1 . 1 Propulsion 3 | . . . . 3 Utility 2 | . . 1 . 1 Weapon 5 | . 1 1 . 3 Highest Loss Streak 8 | . 1 1 . 8 To Critical Strikes . | . . . . . Average Slot Usage (%) 96 | . 98 95 96 92 Engine 12 | . 14 13 11 9 Treads 19 | . . . 36 39 Leg 15 | . 28 28 5 . Device 6 | . 14 13 . . Storage 15 | . 14 14 16 20 Protection 2 | . . . 4 . Energy Gun 4 | . 5 . 7 9 Energy Cannon 10 | . 5 17 7 11 Ballistic Gun 7 | . 11 6 6 . Naked Turns . | . . . . . Heaviest Build 21 | 12 18 18 21 20 Greatest Support 92 | 20 20 20 92 92 Greatest Overweight (x) . | . . . . . Average Overweight (x) . | . . . . . Largest Inventory Capacity 8 | 8 8 8 8 8 Average Capacity 7 | 7 8 8 8 8 Most Carried 8 | 6 8 8 8 8 Average Carried 7 | 3 6 7 7 7 Final Capacity 8 | 8 8 8 8 8 Final Carried 8 | 6 8 8 8 6 Class Distribution -------------------- 75% | Mutant 24% | Scavenger-Mutant Dominant Class ---------------- Mutant | -10/Materials Mutant | -10/Mines Mutant | -9/Materials Mutant | -9/Mines Resources | -11 -10 -10 -9 -9 ----------- Run | Yrd Mat Min Mat Min Matter Collected 1289 | 224 148 326 581 10 Remotely . | . . . . . Salvage Created 1751 | 76 194 481 936 64 Parts 116 | 5 10 39 58 4 Haulers Intercepted 2 | . . . 2 . Recyclers Shooed 2 | 1 . . 1 . Parts Field Recycled . | . . . . . Retrieved Matter . | . . . . . Parts Self-Destructed . | . . . . . Prevented . | . . . . . Kills | -11 -10 -10 -9 -9 ------- Run | Yrd Mat Min Mat Min Combat Hostiles Destroyed 36 | . 4 7 16 9 Guns 27 | . 4 6 15 2 Cannons 4 | . . 1 1 2 AOE 5 | . . . . 5 Classes Destroyed 10 | 2 2 2 3 1 Worker 2 | . . 1 1 . Builder 2 | . . 1 1 . Tunneler 7 | 1 . 6 . . Hauler 2 | . . . 2 . Recycler 5 | 1 . . 4 . Watcher 2 | . 1 . 1 . Swarmer 13 | . . . 10 3 Grunt 12 | . 4 7 1 . Sentry 5 | . . . 5 . Assembled 6 | . . . . 6 Best Kill Streak 6 | 2 3 4 4 6 Combat Bots Only 6 | . 2 2 4 6 Max Kills in Single Turn 5 | 1 1 1 2 5 Gunslinging . | . . . . . Exploded 5 | . . . . 5 Melee . | . . . . . Uniques/NPCs Destroyed . | . . . . . Combat | -11 -10 -10 -9 -9 -------- Run | Yrd Mat Min Mat Min Hostile Shots Fired 315 | . 27 74 118 96 Missed 88 | . 9 24 34 21 Damage Taken 2694 | . 246 442 845 1161 Core 597 | . 92 84 157 264 Absorbed by Shields 105 | . . 105 . . Core Remaining (%) 64 | 100 . 29 . . Volleys Fired 182 | 4 23 65 80 10 Largest 2 | 2 2 2 2 2 Hottest 136 | 40 120 112 136 133 Shots Fired 279 | 8 41 69 142 19 Gun 243 | 8 35 61 131 8 Cannon 33 | . 4 8 11 10 Launcher 1 | . . . . 1 Special 2 | . 2 . . . Kinetic 168 | 8 21 61 78 . Thermal 79 | . 2 . 59 18 Explosive 1 | . . . . 1 Electromagnetic 31 | . 18 8 5 . Robot Hit Streak 12 | 5 12 9 7 4 Robot Miss Streak 6 | 1 2 4 5 6 Penetration Max . | . . . . . Secondary Targets 2 | . 1 . 1 . Max Gunslinging Chain 1 | . 1 . 1 . Shots Hit Robots 167 | 6 29 42 77 13 Core Hits 88 | 3 10 20 33 22 Critical Kills . | . . . . . Critical Parts Destroyed . | . . . . . Critical Strikes 2 | . . . 2 . Burn 2 | . . . 2 . Melee Attacks . | . . . . . Impact . | . . . . . Slashing . | . . . . . Piercing . | . . . . . Sneak Attacks . | . . . . . Combat Hostiles . | . . . . . Follow-up Attacks . | . . . . . Damage Inflicted 2833 | 73 446 584 1188 542 Guns 2027 | 73 376 488 1009 81 Cannons 401 | . 22 96 179 104 Explosions 357 | . . . . 357 Melee . | . . . . . Ramming . | . . . . . Kinetic 1359 | 73 208 488 590 . Thermal 767 | . 48 . 534 185 Explosive 357 | . . . . 357 Electromagnetic 350 | . 190 96 64 . Impact . | . . . . . Slashing . | . . . . . Piercing . | . . . . . Highest Corruption 10 | . 3 10 . 7 Average Corruption 5 | . 2 6 . 5 Corruption Purged . | . . . . . Corruption Blocked . | . . . . . Effects 22 | . 2 20 . . Message Errors 4 | . 1 3 . . Matter Fused 5 | . . 5 . . Heat Flow Errors 4 | . . 4 . . Energy Discharges 1 | . 1 . . . Data Loss (minor) 5 | . . 5 . . Data Loss (major) 1 | . . 1 . . Misfires 1 | . . 1 . . Weapon Failures 1 | . . 1 . . Overload Shots . | . . . . . Overflow Damage 28 | . . . . 28 Projectiles 1 | . . . . 1 Explosions 27 | . . . . 27 Melee . | . . . . . Knockbacks . | . . . . . Impact . | . . . . . Kinetic . | . . . . . Secondary . | . . . . . Self-Inflicted Damage 32 | . . . . 32 Shots 1 | . . . . 1 Rammed . | . . . . . Targets Rammed . | . . . . . Kicked . | . . . . . Crushed . | . . . . . Highest Temperature 354 | . 66 242 273 354 Average Temperature 81 | . 21 88 70 176 Received Heat Transfer 860 | . 144 230 126 360 Effects 2 | . . 1 . 1 Energy Bleed 1 | . . 1 . . Short Circuit 1 | . . . . 1 Siege Activations . | . . . . . Robots Corrupted . | . . . . . Combat Hostiles . | . . . . . Parts Fried 1 | . 1 . . . Impact Corruptions . | . . . . . Robots Melted . | . . . . . Combat Hostiles . | . . . . . Parts Melted 1 | . . . 1 . Heat Transferred 1796 | . 100 . 1406 290 Parts Sabotaged . | . . . . . Parts Stolen . | . . . . . Parts Stripped . | . . . . . Power Chain Reactions . | . . . . . Alert | -11 -10 -10 -9 -9 ------- Run | Yrd Mat Min Mat Min Peak Influence 471 | 10 149 150 471 224 Initial 139 | . 6 57 58 139 Average 186 | 4 70 89 298 202 Maximum Alert Level 2 | . . . 2 1 Low Security (%) 57 | 100 100 100 16 25 Level 1 35 | . . . 68 74 Level 2 7 | . . . 14 . Level 3 . | . . . . . Level 4 . | . . . . . Level 5 . | . . . . . High Security . | . . . . . Max Security . | . . . . . Squads Dispatched 1 | . 1 . . . Investigation . | . . . . . Extermination . | . . . . . Reinforcement 1 | . 1 . . . Assault . | . . . . . Garrison . | . . . . . Intercept . | . . . . . Searches Triggered . | . . . . . Construction Impeded . | . . . . . Haulers Reinforced . | . . . . . Active Scanning Responses . | . . . . . Cargo Convoy Interrupts . | . . . . . Stealth | -11 -10 -10 -9 -9 --------- Run | Yrd Mat Min Mat Min Distress Signals 5 | . 2 . 3 . Communications Jammed . | . . . . . Distress Signals . | . . . . . Times Spotted 69 | . 9 9 32 19 Peak Tracking Total 17 | . 3 2 7 17 Tactical Retreats 6 | . . 3 3 . Traps | -11 -10 -10 -9 -9 ------- Run | Yrd Mat Min Mat Min Traps Triggered 2 | . 2 . . . Indirectly . | . . . . . Trap Hack Attempts . | . . . . . Triggered . | . . . . . Disarmed . | . . . . . Reprogrammed . | . . . . . Reused . | . . . . . Traps Extracted . | . . . . . Installed . | . . . . . Triggered . | . . . . . Machines | -11 -10 -10 -9 -9 ---------- Run | Yrd Mat Min Mat Min Machines Disabled 2 | . 1 . 1 . Max in Single Turn 1 | . 1 . 1 . Machines Repaired . | . . . . . Machines Dismantled . | . . . . . Machines Sabotaged . | . . . . . Overloaded Fab Kills . | . . . . . Hacking | -11 -10 -10 -9 -9 --------- Run | Yrd Mat Min Mat Min Machines Accessed 2 | . 1 . 1 . Terminals 2 | . 1 . 1 . Fabricators . | . . . . . Repair Stations . | . . . . . Recycling Units . | . . . . . Scanalyzers . | . . . . . Garrison Access . | . . . . . Total Hacks 3 | . 2 . 1 . Successful 1 | . . . 1 . Failed 2 | . 2 . . . Catastrophic 1 | . 1 . . . Database Lockouts . | . . . . . Manual 2 | . 2 . . . Terminals 3 | . 2 . 1 . Fabricators . | . . . . . Repair Stations . | . . . . . Recycling Units . | . . . . . Scanalyzers . | . . . . . Garrison Access . | . . . . . Terminal Hacks 1 | . . . 1 . Prototype ID Bank 1 | . . . 1 . Fabricator Hacks . | . . . . . Repair Station Hacks . | . . . . . Recycling Unit Hacks . | . . . . . Scanalyzer . | . . . . . Garrison Access Hacks . | . . . . . Unauthorized Hacks . | . . . . . Terminals . | . . . . . Fabricators . | . . . . . Repair Stations . | . . . . . Recycling Units . | . . . . . Scanalyzers . | . . . . . Garrison Access . | . . . . . Data Cores Recovered . | . . . . . Used . | . . . . . Hacking Detections 1 | . 1 . . . Full Trace Events . | . . . . . Feedback Events . | . . . . . Feedback Blocked . | . . . . . Robot Schematics Acquired . | . . . . . Robots Built . | . . . . . Authchips . | . . . . . Time . | . . . . . Total Robot Build Rating . | . . . . . Part Schematics Acquired . | . . . . . Parts Built . | . . . . . Authchips . | . . . . . Time . | . . . . . Total Part Build Rating . | . . . . . Parts Repaired . | . . . . . Time . | . . . . . Parts Recycled . | . . . . . Recycled Matter . | . . . . . Retrieved Matter . | . . . . . Retrieved Components . | . . . . . Parts Scanalyzed . | . . . . . Part Schematics Acquired . | . . . . . Parts Damaged . | . . . . . Bothacking | -11 -10 -10 -9 -9 ------------ Run | Yrd Mat Min Mat Min Used RIF Installer . | . . . . . Robots Hacked . | . . . . . Non-combat . | . . . . . Combat . | . . . . . Robot Hacks Applied . | . . . . . Relay Couplers Released . | . . . . . Fabnet Peak Effective % . | . . . . . Robots Rewired . | . . . . . Allies Hacked . | . . . . . Hacks Repelled . | . . . . . Allies | -11 -10 -10 -9 -9 -------- Run | Yrd Mat Min Mat Min Total Allies . | . . . . . Largest Group . | . . . . . Highest-Rated Group . | . . . . . Highest-Rated Ally . | . . . . . Total Orders . | . . . . . Ally Attacks . | . . . . . Total Damage . | . . . . . Kills . | . . . . . Allies Corrupted . | . . . . . Allies Melted . | . . . . . Intel | -11 -10 -10 -9 -9 ------- Run | Yrd Mat Min Mat Min Robot Analysis Total . | . . . . . Derelict Logs Recovered . | . . . . . Drone Launches . | . . . . . Drone Recoveries . | . . . . . Exploration | -11 -10 -10 -9 -9 ------------- Run | Yrd Mat Min Mat Min Turns Passed 2391 | 119 297 754 1151 70 Spaces Moved 1160 | 69 170 353 543 25 Core 7 | 7 . . . . Treads 478 | . . . 453 25 Legs 675 | 62 170 353 90 . Wheels . | . . . . . Hover . | . . . . . Flight . | . . . . . Fastest Speed 50 | 50 120 120 120 160 Average Speed 136 | 112 120 120 153 160 Slowest Speed 160 | 120 120 120 160 160 Overloaded Moves . | . . . . . Propulsion Burnouts . | . . . . . Robots Hopped . | . . . . . Cave-ins Triggered . | . . . . . Exploration Rate (%) 25 | 3 35 44 34 10 Regions Visited 4 Branch Regions 2 Pre-discovered Areas 1 | . . 1 . . Known Exits Taken . | . . . . . Unknown Exits Taken 4 | 1 1 1 1 . Scrap Searched 2 | . . 2 . . Spaces Dug . | . . . . . Terrain Destroyed 4 | . . . . 4 Melee . | . . . . . Projectile . | . . . . . AOE 4 | . . . . 4 Terrain Rammed . | . . . . . Walls Destroyed . | . . . . . Machines Disabled . | . . . . . Actions | -11 -10 -10 -9 -9 --------- Run | Yrd Mat Min Mat Min Total 1701 | 98 219 617 730 37 Wait 236 | 12 11 174 39 . Move 1156 | 68 169 352 542 25 Hop . | . . . . . Pick Up 20 | 5 6 2 7 . Fast Attach 26 | 8 3 3 12 . Attach 6 | . 1 1 2 2 Detach 2 | 1 . . 1 . Swap 26 | . . 9 17 . Drop 47 | . 6 11 30 . Fire 182 | 4 23 65 80 10 Melee . | . . . . . Ram . | . . . . . Kick . | . . . . . Crush . | . . . . . Escape Stasis . | . . . . . Rewire . | . . . . . Trap . | . . . . . Miscellaneous . | . . . . . Route ------- -11/Scrapyard -10/Materials -10/Mines (discovered 2 exits: *Mat / [*Sub]) -9/Materials -9/Mines History --------- Turn | Location | Event 9 | -11/Scrapyard | Discovered new exit (range 15) 120 | -11/Scrapyard | Entered Materials 314 | -10/Materials | Build established: Mutant 380 | -10/Materials | Discovered new exit (range 16) 417 | -10/Materials | Entered Mines 519 | -10/Mines | Excavation squad dispatched 519 | -10/Mines | A large section of the Mines collapsed 769 | -10/Mines | Excavation squad dispatched 810 | -10/Mines | Core integrity fell below 50% 844 | -10/Mines | System corruption reached 10% 962 | -10/Mines | Learned location of Storage (-8) 969 | -10/Mines | Discovered new exit (range 8) 978 | -10/Mines | Discovered new exit (range 5) 1171 | -10/Mines | Entered Materials 1171 | -9/Materials | Evolved 2 slots: Propulsion x2 1211 | -9/Materials | Build established: Scavenger-Mutant 1670 | -9/Materials | Build established: Mutant 2266 | -9/Materials | Discovered new exit (range 7) 2322 | -9/Materials | Entered Mines 2356 | -9/Mines | Assembled infested the area 2382 | -9/Mines | Core integrity fell below 50% 2390 | -9/Mines | Core integrity fell below 20% 2392 | -9/Mines | Destroyed by as-34626 with Assembled Maul Last Messages --------------- 02387_ R-06 Scavenger destroyed. 02387_ as-34626 sneak attacks. 02387_ U-05 Engineer system corrupted by crushing effect. 02387_ Imp. Ion Engine destroyed. 02387_ Destroyed Imp. Ion Engine. 02387_ as-59799 destroyed. 02387_ as-57188 destroyed. 02387_ as-61217 destroyed. 02387_ as-99877 destroyed. 02387_ as-14781 destroyed. 02387_ R-06 Scavenger collects Com. Wheel. 02388_ Imp. Treads broken. 02388_ Overheating: Short circuit. 02388_ U-05 Engineer system terminally corrupted. 02389_ Imp. Treads destroyed. 02390_ Adv. Beam Cannon destroyed. 02390_ Grenade Launcher destroyed. 02390_ R-06 Scavenger collects Sml. Storage Unit. 02391_ Broken Imp. Treads destroyed. 02392_ Knocked back. Map ----- +----------------------------------------------------+ | ????????????????????????????????????????????????? | | ????????????????????????????????????????????????? | | ????????????????????????????????????????????????? | | ????????????????????????????????????????????????? | | ????????????????????????????????????????????????? | | ????????????????????????????????????????????????? | | ????????????????????????????????????????????????? | | ????????????????????????????????????????????????? | | ????????????????????????????????????????????????? | | ????????????????????????????????????????????????? | | ????????????????????????????????????????????????? | | ????????????????????????????????????????????????? | | ????????????????????????????????????????????????? | | ????????????????????????????????????????????????? | | ????????????????????????????????????????????????? | | ????????????????????????????????????????????????? | | ????????????????????????????????????????????????? | | ?????????????????????????#####??????????????????? | | ?????????????????????????? #??????????????????? | | ??????????????????????????# #???????????? ???? | | ??????????????????????????# #?????????? ????? | | ?????????????????????##### a###??????? ????? | | ????????????????????## a =% ##???? ???? | | ???????????????????## %=% #### ????? | | ???????????????????# aaa%aa a ????? | | ???????????????????# @=a ??????? | | ??????????????????# %% a ###?????????????? | | ?????????????????# ### #???????????????? | | ??????????????# !%r ???## #???????????????? | | ??????????????# ### ????## #???????????????? | | ??????????????????## ?????# #???????????????? | | ???????????????????## ??????# #???????????????? | | ????????????????????###???#### ##??????????????? | | ??????????????????????????# #??????????????? | | ??????????????????????????# #######????????? | | ??????????????????????????# = #????????? | | ??????????????????????????# % * ##### #????????? | | ??????????????????????????# *%= #??????????????? | | ??????????????????????????########??????????????? | | ????????????????????????????????????????????????? | | ????????????????????????????????????????????????? | | ????????????????????????????????????????????????? | | ????????????????????????????????????????????????? | | ????????????????????????????????????????????????? | | ????????????????????????????????????????????????? | | ????????????????????????????????????????????????? | | ????????????????????????????????????????????????? | | ????????????????????????????????????????????????? | | ????????????????????????????????????????????????? | | ????????????????????????????????????????????????? | +----------------------------------------------------+ Best States ------------- Heat Dissipation 28 Energy Generation 12 Energy Capacity 265 Matter Stores 350 Matter Capacity 350 Sight Range 16 Terrain Scan Range 16 Terrain Scan Density 10 Armor Coverage 150 Evasion (%) 55 Recoil Reduction 4 Item Schematics ----------------- None Robot Schematics ------------------ None Fabricated ------------ Nothing Alien Tech Used ----------------- None Achievements -------------- None Challenges ------------ None Game ------ Seed GravmagSiegeRecalibrator Manual? 0 Play Time 00:17:56 Cumulative 36.2 hours Start 2024.04.01 @ 13:10:21 End 2024.04.01 @ 13:29:03 Sessions 1 Manual Loads 0 Difficulty Rogue Special Mode None Game No. 81 Rogue 81 Adventurer 0 Explorer 0 Win Type - Total 0 Types 0/0/0/0/0/0/0/0/0 Lore% 20 Gallery% 29 Achievement% 25 Wizard Run 0 Options --------- Layout 0 ASCII 0 Keyboard 1 Movement Numpad Keybinds 0 Fullscreen 1 Font 18/X11 Map View 76x50 Zoom Use 0% Tactical HUD 1 Map Filters NONE Filters NONE Steam 1 RUN: b85492fe-582c-4719-b212-6adb7cfbe8fd